bitfinex/quotes_BTCUSD_20250320
["timestamp","ask_amount","ask_price","bid_price","bid_amount"]
[1742438710303,0.0117715,86192.0,86191.0,0.14092]
[1742438711384,0.0117715,86192.0,86191.0,0.13592]
[1742438711646,0.0117715,86192.0,86191.0,0.004]
[1742438711846,0.0117715,86192.0,86191.0,0.008]
[1742438714241,0.0001695,86192.0,86191.0,0.008]
[1742438714439,0.0001695,86192.0,86191.0,0.147802]
[1742438714798,0.0001695,86192.0,86191.0,0.1362]
[1742438715957,0.1858015,86192.0,86191.0,0.1362]
[1742438716125,0.1974035,86192.0,86191.0,0.1362]
[1742438717150,0.0001695,86192.0,86191.0,0.1362]
[1742438718857,0.0117715,86192.0,86191.0,0.1362]
[1742438719952,0.0001695,86192.0,86191.0,0.333436]
[1742438720160,0.0001695,86192.0,86191.0,0.1362]
[1742438723970,0.1974035,86192.0,86191.0,0.13888]
[1742438731367,0.0001695,86192.0,86191.0,0.13888]
[1742438731583,0.0117715,86192.0,86191.0,0.13888]
[1742438733499,0.0117715,86192.0,86191.0,0.008]
[1742438733702,0.0117715,86192.0,86191.0,0.13888]
[1742438745160,0.0117715,86192.0,86191.0,0.008]
[1742438745372,0.0117715,86192.0,86191.0,0.13888]
[1742438746504,0.12413605,86192.0,86191.0,0.008]
[1742438747539,0.12413605,86192.0,86191.0,0.004]
[1742438747671,0.011603,86181.0,86180.0,0.57744]
[1742438748503,0.20897611,86181.0,86180.0,0.57744]
[1742438748734,0.011602,86190.0,86183.0,0.011603]
[1742438748948,0.12430307,86190.0,86183.0,0.011603]
[1742438749182,0.011602,86188.0,86182.0,0.011603]
[1742438749414,0.197239,86190.0,86185.0,0.197249]
[1742438749643,0.011602,86189.0,86182.0,0.011603]
[1742438749859,0.185646,86186.0,86180.0,0.777698]
[1742438750067,0.011602,86188.0,86183.0,0.185649]
[1742438750286,0.20866482,86190.0,86185.0,0.185646]
[1742438750548,0.185641,86188.0,86185.0,0.0798]
[1742438750744,0.011602,86187.0,86185.0,0.0798]
[1742438751564,0.197246,86187.0,86185.0,0.0828]
[1742438751734,0.197246,86187.0,86185.0,0.0858]
[1742438752064,0.197246,86187.0,86185.0,0.0798]
[1742438752285,0.197246,86187.0,86185.0,0.0858]
[1742438752469,0.011602,86186.0,86185.0,0.0858]
[1742438753876,0.011602,86186.0,86185.0,0.0828]
[1742438754104,0.011602,86187.0,86185.0,0.0838]
[1742438754303,0.0001695,86193.0,86188.0,0.19724]
[1742438754527,0.0001695,86193.0,86188.0,0.0498]
[1742438754733,0.1858005,86193.0,86188.0,0.0498]
[1742438755144,0.01185778,86192.0,86188.0,0.0498]
[1742438755459,0.01185778,86192.0,86189.0,0.13088]
[1742438756906,0.01185778,86192.0,86190.0,0.185636]
[1742438757106,0.01185778,86192.0,86189.0,0.13288]
[1742438758103,0.01185778,86192.0,86190.0,0.002]
[1742438758740,0.01185778,86192.0,86189.0,0.13288]
[1742438759145,0.01185778,86192.0,86189.0,0.13088]
[1742438759339,0.01185778,86192.0,86190.0,0.197238]
[1742438759541,0.01185778,86192.0,86190.0,0.199238]
[1742438760124,0.01185778,86192.0,86190.0,0.002]
[1742438760325,0.011602,86191.0,86190.0,0.002]
[1742438760733,0.197238,86191.0,86189.0,0.13288]
[1742438761134,0.011602,86191.0,86189.0,0.13288]
[1742438761339,0.011602,86191.0,86189.0,0.13088]
[1742438761713,0.011602,86191.0,86190.0,0.004]
[1742438761885,0.19749078,86192.0,86190.0,0.004]
[1742438762111,0.19749078,86192.0,86189.0,0.13088]
[1742438762419,0.19749078,86192.0,86189.0,0.13488]
[1742438762587,0.01185778,86192.0,86189.0,0.13288]
[1742438763685,0.01185778,86192.0,86189.0,0.13088]
[1742438763888,0.01185778,86192.0,86190.0,0.002]
[1742438764083,0.01185778,86192.0,86190.0,0.004]
[1742438764315,0.19749078,86192.0,86190.0,0.002]
[1742438764475,0.011602,86191.0,86189.0,0.13088]
[1742438764668,0.19749078,86192.0,86189.0,0.13088]
[1742438764870,0.19749078,86192.0,86189.0,0.13288]
[1742438765072,0.01185778,86192.0,86189.0,0.13288]
[1742438765277,0.01185778,86192.0,86189.0,0.13488]
[1742438765636,0.01185778,86192.0,86189.0,0.13288]
[1742438765858,0.0001695,86192.0,86191.0,0.197236]
[1742438766605,0.0001695,86192.0,86191.0,0.32019613]
[1742438766836,0.0001695,86192.0,86191.0,0.35515]
[1742438767494,0.0001695,86192.0,86191.0,0.35715]
[1742438767840,0.0001695,86192.0,86191.0,0.35515]
[1742438768043,0.0001695,86192.0,86191.0,0.65515]
[1742438768248,0.0001695,86192.0,86191.0,0.66015]
[1742438768451,0.0001695,86192.0,86191.0,0.79426588]
[1742438768938,0.0001695,86192.0,86191.0,0.79526588]
[1742438769078,0.0001695,86193.0,86192.0,0.45344285]
[1742438769286,0.0001693,86198.0,86192.0,0.45344285]
[1742438769287,8e-07,86197.0,86196.0,0.02614185]
[1742438769489,0.00012588,86197.0,86196.0,0.79591361]
[1742438769698,0.00012588,86197.0,86196.0,0.79475388]
[1742438769902,0.0001693,86198.0,86196.0,0.79475388]
[1742438769903,1.8e-07,86198.0,86197.0,0.011601]
[1742438770108,1.8e-07,86198.0,86197.0,0.61029056]
[1742438770303,1.8e-07,86198.0,86197.0,0.60913088]
[1742438770483,5e-07,86204.0,86203.0,0.51174885]
[1742438770685,0.0129642,86222.0,86221.0,0.497167]
[1742438770914,0.0129642,86222.0,86221.0,0.92140873]
[1742438771087,2e-07,86222.0,86221.0,0.92140873]
[1742438771286,0.001,86239.0,86221.0,0.92140873]
[1742438771287,0.001,86239.0,86228.0,0.497151]
[1742438771511,0.00019505,86229.0,86228.0,1.28366688]
[1742438771870,0.00019505,86229.0,86228.0,0.9524]
[1742438772075,0.011598,86218.0,86207.0,0.0483]
[1742438772280,0.011597,86223.0,86214.0,0.311599]
[1742438772492,0.185578,86217.0,86214.0,0.3]
[1742438772670,0.197172,86219.0,86215.0,0.13084]
[1742438772875,0.185567,86222.0,86216.0,0.011598]
[1742438773107,0.197162,86223.0,86216.0,0.197176]
[1742438773315,0.185569,86221.0,86216.0,0.197176]
[1742438773519,0.011597,86222.0,86216.0,0.197176]
[1742438773741,0.011598,86219.0,86217.0,0.13084]
[1742438773939,0.185576,86218.0,86217.0,0.13084]
[1742438774239,0.197174,86218.0,86217.0,0.13084]
[1742438774671,0.011598,86217.0,86216.0,0.003]
[1742438774800,0.011598,86217.0,86216.0,0.13684]
[1742438775006,0.011598,86217.0,86216.0,0.13384]
[1742438775262,0.011598,86217.0,86216.0,0.13084]
[1742438775463,0.011598,86219.0,86216.0,0.13084]
[1742438775607,0.011598,86218.0,86216.0,0.13084]
[1742438776010,0.011597,86226.0,86216.0,0.13084]
[1742438776209,0.011597,86224.0,86218.0,0.011598]
[1742438776717,0.011597,86223.0,86217.0,0.189578]
[1742438776918,0.197168,86221.0,86217.0,0.004]
[1742438777175,0.197168,86221.0,86216.0,0.13384]
[1742438777383,0.197172,86219.0,86216.0,0.13384]
[1742438777558,0.1973416,86219.0,86218.0,0.002]
[1742438777739,0.1973416,86219.0,86218.0,0.004]
[1742438777935,0.1973416,86219.0,86218.0,0.002]
[1742438778137,0.1973416,86219.0,86216.0,0.13084]
[1742438778358,0.0117676,86219.0,86216.0,0.13684]
[1742438778567,0.0001696,86219.0,86216.0,0.13684]
[1742438778774,0.0001696,86219.0,86216.0,0.13384]
[1742438778994,0.0001696,86219.0,86218.0,0.003]
[1742438779562,0.0001696,86219.0,86218.0,0.014598]
[1742438779966,0.0001696,86219.0,86218.0,0.203174]
[1742438780312,0.0001696,86219.0,86218.0,0.200174]
[1742438780520,0.0001696,86219.0,86218.0,0.193854]
[1742438781541,0.0001696,86219.0,86218.0,0.66348877]
[1742438781689,0.0001696,86219.0,86218.0,0.66232903]
[1742438781926,0.0001696,86219.0,86218.0,0.66532903]
[1742438782570,0.0001696,86219.0,86218.0,1.1964422]
[1742438782776,0.0001696,86219.0,86218.0,1.22930731]
[1742438783118,0.0001696,86219.0,86218.0,1.1934422]
[1742438783533,0.0001696,86219.0,86218.0,1.1954422]
[1742438783956,0.0001696,86219.0,86218.0,1.2004422]
[1742438785090,0.0001696,86219.0,86218.0,1.3312422]
[1742438789283,0.00019505,86229.0,86228.0,0.58769185]
[1742438789519,0.00019505,86229.0,86228.0,1.28446688]
[1742438789737,0.00019505,86229.0,86228.0,1.33256688]
[1742438790508,0.00019505,86229.0,86228.0,1.34634571]
[1742438790870,0.00019505,86229.0,86228.0,1.35493102]
[1742438791312,0.00019505,86229.0,86228.0,1.36093102]
[1742438792022,0.00019505,86229.0,86228.0,1.35893102]
[1742438792424,0.00019505,86229.0,86228.0,1.36493102]
[1742438792626,0.00019505,86229.0,86228.0,1.77983102]
[1742438796286,0.00019505,86229.0,86228.0,1.81565616]
[1742438796957,0.00019505,86229.0,86228.0,1.84065616]
[1742438797136,4.5e-07,86239.0,86238.0,0.64346885]
[1742438797324,0.0004172,86239.0,86238.0,0.92962902]
[1742438798429,0.0004172,86239.0,86238.0,0.93562902]
[1742438798630,0.0004172,86239.0,86238.0,0.93062902]
[1742438799582,0.0004172,86239.0,86238.0,0.80586902]
[1742438800041,0.0004172,86239.0,86238.0,0.92208817]
[1742438800380,0.0004172,86239.0,86238.0,0.93662902]
[1742438800599,0.0004172,86239.0,86238.0,0.96035816]
[1742438801211,0.0004172,86239.0,86238.0,0.82359816]
[1742438801531,0.0004172,86239.0,86238.0,0.95435816]
[1742438801822,0.0004172,86239.0,86238.0,0.96035816]
[1742438802335,0.0005868,86239.0,86238.0,0.95435816]
[1742438802508,0.0005868,86239.0,86238.0,0.82359816]
[1742438802833,0.0005868,86239.0,86238.0,0.96035816]
[1742438803244,0.0005868,86239.0,86238.0,0.69025399]
[1742438803395,0.0005868,86239.0,86238.0,0.67571314]
[1742438803809,0.0005868,86239.0,86238.0,0.639888]
[1742438805497,0.0005868,86239.0,86238.0,0.67576523]
[1742438806740,0.0005868,86239.0,86238.0,0.54500523]
[1742438806992,0.0005868,86239.0,86238.0,0.639888]
[1742438807574,0.0121818,86239.0,86238.0,0.012]
[1742438807784,0.0121818,86239.0,86238.0,0.13076]
[1742438807992,0.0005868,86239.0,86238.0,0.148355]
[1742438808195,0.0005868,86239.0,86238.0,0.339888]
[1742438808386,0.0005868,86239.0,86238.0,0.333888]
[1742438808627,0.0121818,86239.0,86238.0,0.012]
[1742438808835,0.0805868,86239.0,86238.0,0.14276]
[1742438809017,0.0805868,86239.0,86238.0,0.13676]
[1742438809221,0.0805868,86239.0,86238.0,0.13076]
[1742438809349,0.2661168,86239.0,86238.0,0.13876]
[1742438809717,0.2777118,86239.0,86238.0,0.13876]
[1742438809917,0.38691478,86239.0,86238.0,0.13876]
[1742438810681,0.38691478,86239.0,86238.0,0.13476]
[1742438810903,0.185546,86232.0,86226.0,0.197155]
[1742438811148,0.185546,86232.0,86229.0,0.13076]
[1742438811333,0.011596,86233.0,86229.0,0.13076]
[1742438811494,0.185541,86235.0,86230.0,0.18555]
[1742438811890,0.197137,86235.0,86230.0,0.18555]
[1742438812879,0.197137,86235.0,86230.0,0.18855]
[1742438813873,0.197137,86235.0,86230.0,0.19155]
[1742438814944,0.197137,86235.0,86231.0,0.13076]
[1742438816121,0.197137,86235.0,86231.0,0.13376]
[1742438817269,0.197137,86235.0,86231.0,0.13676]
[1742438817527,0.011596,86236.0,86231.0,0.322306]
[1742438817731,0.011596,86236.0,86231.0,0.13676]
[1742438817936,0.011596,86232.0,86231.0,0.13676]
[1742438818251,0.185545,86233.0,86231.0,0.13376]
[1742438818452,0.197137,86235.0,86231.0,0.13076]
[1742438818682,0.197137,86235.0,86231.0,0.13376]
[1742438818969,0.197137,86235.0,86231.0,0.13676]
[1742438819094,0.197137,86235.0,86231.0,0.13376]
[1742438820252,0.197137,86235.0,86231.0,0.13076]
[1742438820755,0.197137,86235.0,86231.0,0.13676]
[1742438820995,0.011596,86236.0,86231.0,0.13376]
[1742438820996,0.185538,86236.0,86231.0,0.13376]
[1742438821184,0.02343629,86258.0,86231.0,0.13376]
[1742438821185,0.0005868,86239.0,86237.0,0.185533]
[1742438821858,0.0005868,86239.0,86234.0,0.18554]
[1742438822099,0.0121818,86239.0,86232.0,0.011596]
[1742438822275,0.011596,86234.0,86231.0,0.13476]
[1742438822512,0.185541,86235.0,86231.0,0.13476]
[1742438822737,0.011596,86235.0,86231.0,0.13476]
[1742438822969,0.185542,86234.0,86231.0,0.13476]
[1742438823198,0.197136,86235.0,86231.0,0.13476]
[1742438823690,0.185533,86238.0,86233.0,0.185543]
[1742438823927,0.197128,86238.0,86233.0,0.197139]
[1742438824155,0.197128,86238.0,86234.0,0.004]
[1742438824598,0.197128,86238.0,86233.0,0.011596]
[1742438824824,0.0005868,86239.0,86233.0,0.011596]
[1742438825081,0.0005868,86239.0,86236.0,0.197133]
[1742438825312,0.0005868,86239.0,86233.0,0.017596]
[1742438825313,0.0005868,86239.0,86233.0,0.200137]
[1742438825521,0.011595,86238.0,86234.0,0.003]
[1742438825797,0.011595,86238.0,86234.0,0.006]
[1742438826233,0.011595,86237.0,86234.0,0.006]
[1742438826570,0.19713,86237.0,86234.0,0.006]
[1742438826798,0.19713,86237.0,86233.0,0.185541]
[1742438827114,0.19713,86237.0,86233.0,0.189541]
[1742438827708,0.19713,86237.0,86234.0,0.004]
[1742438827908,0.19713,86237.0,86233.0,0.190541]
[1742438828226,0.19713,86237.0,86233.0,0.194541]
[1742438828629,0.19713,86237.0,86233.0,0.185541]
[1742438829763,0.011595,86237.0,86233.0,0.185541]
[1742438830183,0.011595,86237.0,86234.0,0.005]
[1742438830385,0.011595,86238.0,86234.0,0.005]
[1742438830609,0.011595,86238.0,86234.0,0.004]
[1742438830949,0.011595,86238.0,86233.0,0.197137]
[1742438831172,0.1861178,86239.0,86234.0,0.197136]
[1742438831584,0.0005868,86239.0,86236.0,0.197132]
[1742438832030,0.0005868,86239.0,86234.0,0.205136]
[1742438832225,0.0005868,86239.0,86237.0,0.13076]
[1742438832413,0.0005868,86239.0,86236.0,0.185536]
[1742438832628,0.0005868,86239.0,86238.0,0.13076]
[1742438832837,0.0005868,86239.0,86238.0,0.316293]
[1742438833040,0.0005868,86239.0,86238.0,0.327888]
[1742438834484,0.0005868,86239.0,86238.0,0.332888]
[1742438834663,0.0005868,86239.0,86238.0,0.337888]
[1742438837760,0.00996051,86249.0,86244.0,0.185518]
[1742438837930,0.185509,86250.0,86245.0,0.185516]
[1742438838133,0.185509,86250.0,86244.0,0.011595]
[1742438838134,0.197104,86249.0,86244.0,0.011595]
[1742438838801,0.011594,86251.0,86245.0,0.011594]
[1742438839007,0.1971,86251.0,86246.0,0.185515]
[1742438839158,0.185498,86254.0,86246.0,0.185515]
[1742438839355,0.185492,86257.0,86251.0,0.185504]
[1742438839561,0.1855,86253.0,86252.0,0.13076]
[1742438839964,0.197093,86253.0,86252.0,0.13076]
[1742438840404,0.00029435,86256.0,86255.0,0.185496]
[1742438840545,0.00029435,86256.0,86255.0,0.272489]
[1742438840951,0.00029435,86256.0,86255.0,0.03598582]
[1742438841176,0.00029435,86256.0,86252.0,0.13276]
[1742438841387,0.00029435,86256.0,86252.0,0.13476]
[1742438841590,0.011593,86254.0,86253.0,0.1342]
[1742438841765,0.197093,86254.0,86253.0,0.1342]
[1742438841963,0.197091,86254.0,86253.0,0.1342]
[1742438842171,0.01188735,86256.0,86253.0,0.1342]
[1742438842393,0.19738135,86256.0,86253.0,0.1342]
[1742438842596,0.19699304,86254.0,86253.0,0.1342]
[1742438842798,0.19738135,86256.0,86253.0,0.1342]
[1742438842983,0.197091,86255.0,86253.0,0.13424]
[1742438843911,0.197091,86255.0,86253.0,0.13724]
[1742438844106,0.197091,86255.0,86253.0,0.005]
[1742438844419,0.197091,86255.0,86254.0,0.13416]
[1742438846342,0.197091,86255.0,86254.0,0.13716]
[1742438847518,0.197091,86255.0,86254.0,0.14016]
[1742438849548,0.1972605,86255.0,86254.0,0.14016]
[1742438853353,0.30538799,86255.0,86254.0,0.006]
[1742438853567,0.43178799,86255.0,86254.0,0.006]
[1742438854551,0.43178799,86255.0,86254.0,0.003]
[1742438855899,0.197125,86239.0,86238.0,0.000339]
[1742438857196,0.197125,86239.0,86238.0,0.002339]
[1742438857583,0.30632798,86239.0,86238.0,0.002339]
[1742438858213,0.30632798,86239.0,86238.0,0.004339]
[1742438859933,0.30632798,86239.0,86238.0,0.002339]
[1742438860333,0.30632798,86239.0,86238.0,0.004339]
[1742438863182,0.30632798,86239.0,86238.0,0.002339]
[1742438863380,0.35452798,86239.0,86238.0,0.002339]
[1742438863553,0.35452798,86239.0,86238.0,0.000339]
[1742438867107,0.35952798,86239.0,86238.0,0.000339]
[1742438868835,0.76812798,86239.0,86238.0,0.000339]
[1742438869060,0.197169,86220.0,86219.0,0.0003392]
[1742438869259,0.30764964,86220.0,86219.0,0.0003392]
[1742438869480,0.31935292,86220.0,86219.0,0.0003392]
[1742438869647,0.40045292,86220.0,86219.0,0.0003392]
[1742438870598,0.40045292,86220.0,86219.0,0.00075595]
[1742438870952,0.40145292,86220.0,86219.0,0.00075595]
[1742438871359,0.32035292,86220.0,86219.0,0.00075595]
[1742438871810,0.20987228,86220.0,86219.0,0.00075595]
[1742438873006,0.20887228,86220.0,86219.0,0.00075595]
[1742438873289,0.21087228,86220.0,86219.0,0.00075595]
[1742438873921,0.20887228,86220.0,86219.0,0.00075595]
[1742438875182,0.01170328,86220.0,86219.0,0.00075595]
[1742438875402,0.185571,86220.0,86219.0,0.00075595]
[1742438876362,0.197169,86220.0,86219.0,0.00075595]
[1742438877112,0.197169,86220.0,86219.0,0.00375595]
[1742438877930,0.197169,86220.0,86219.0,0.00675595]
[1742438879291,0.20885704,86220.0,86219.0,0.00675595]
[1742438881773,0.31933768,86220.0,86219.0,0.00675595]
[1742438883291,0.31933768,86220.0,86219.0,0.00375595]
[1742438884055,0.31933768,86220.0,86219.0,0.00075595]
[1742438884508,0.31933768,86220.0,86219.0,0.00175595]
[1742438884938,0.31933768,86220.0,86219.0,0.00075595]
[1742438885300,0.32033768,86220.0,86219.0,0.00075595]
[1742438889787,0.73393768,86220.0,86219.0,0.00075595]
[1742438890027,0.202176,86217.0,86216.0,9.5e-07]
[1742438890268,0.40919839,86217.0,86216.0,1e-06]
[1742438890515,0.011602,86188.0,86187.0,0.13312]
[1742438890756,0.30987577,86188.0,86187.0,0.00012508]
[1742438891950,0.32279561,86188.0,86187.0,0.00012508]
[1742438895811,0.39869561,86188.0,86187.0,0.00012508]
[1742438896015,0.40369561,86188.0,86187.0,0.00012508]
[1742438896849,0.40269561,86188.0,86187.0,0.00012508]
[1742438897316,0.40569561,86188.0,86187.0,0.00012508]
[1742438897701,0.40569561,86188.0,86187.0,0.00046408]
[1742438898039,0.81429561,86188.0,86187.0,0.00046408]
[1742438898255,0.80929561,86188.0,86187.0,0.00046408]
[1742438898458,0.73439561,86188.0,86187.0,0.00046408]
[1742438899710,0.73339561,86188.0,86187.0,0.00046408]
[1742438899851,0.73439561,86188.0,86187.0,0.00046408]
[1742438900054,0.73139561,86188.0,86187.0,0.00046408]
[1742438900469,0.73439561,86188.0,86187.0,0.00046408]
[1742438901810,0.62176184,86188.0,86187.0,0.00046408]
[1742438902020,0.42451984,86188.0,86187.0,0.00046408]
[1742438902262,0.42351984,86188.0,86187.0,0.00046408]
[1742438902717,0.42351984,86188.0,86187.0,0.00146408]
[1742438903007,0.43512184,86188.0,86187.0,0.00046408]
[1742438903221,0.43212184,86188.0,86187.0,0.00046408]
[1742438903449,0.4086,86188.0,86187.0,0.00046408]
[1742438903664,0.4086,86188.0,86187.0,0.00146408]
[1742438903868,0.011601,86199.0,86194.0,0.011601]
[1742438904000,0.0116,86203.0,86196.0,0.011601]
[1742438904219,0.197215,86200.0,86195.0,0.185625]
[1742438904415,0.011601,86199.0,86194.0,0.011601]
[1742438904620,0.197215,86200.0,86194.0,0.197226]
[1742438905017,0.197222,86198.0,86192.0,0.144242]
[1742438905220,0.197225,86196.0,86192.0,0.13264]
[1742438905442,0.197221,86198.0,86192.0,0.13264]
[1742438905619,0.197226,86196.0,86192.0,0.13264]
[1742438906090,0.011601,86195.0,86194.0,0.002]
[1742438906417,0.011601,86195.0,86192.0,0.13264]
[1742438906617,0.197228,86195.0,86192.0,0.13564]
[1742438907057,0.197228,86195.0,86192.0,0.13664]
[1742438907612,0.197228,86195.0,86192.0,0.13264]
[1742438907785,0.197228,86195.0,86192.0,0.13664]
[1742438908527,0.197228,86195.0,86194.0,0.004]
[1742438908734,0.011599,86211.0,86196.0,0.011601]
[1742438908964,0.0116,86206.0,86199.0,0.197218]
[1742438909095,0.011599,86211.0,86204.0,0.185605]
[1742438909301,0.011599,86207.0,86205.0,0.0759]
[1742438909532,0.197201,86206.0,86205.0,0.0759]
[1742438909714,0.20879396,86206.0,86205.0,0.0759]
[1742438911097,0.20879396,86206.0,86205.0,0.0769]
[1742438911979,0.01159296,86206.0,86205.0,0.0779]
[1742438912171,0.197196,86209.0,86205.0,0.0769]
[1742438912521,0.185599,86207.0,86205.0,0.0769]
[1742438912653,0.185599,86207.0,86205.0,0.0779]
[1742438912858,0.185599,86207.0,86205.0,0.0769]
[1742438913322,0.19697887,86207.0,86205.0,0.0779]
[1742438913480,0.20857787,86207.0,86205.0,0.0779]
[1742438913690,0.0116,86206.0,86205.0,0.0779]
[1742438914470,0.0116,86206.0,86205.0,0.0789]
[1742438914679,0.0116,86206.0,86205.0,0.0769]
[1742438914991,0.0116,86206.0,86205.0,0.001]
[1742438915196,0.0116,86206.0,86205.0,0.002]
[1742438915604,0.197204,86205.0,86204.0,0.13232]
[1742438917482,0.197204,86205.0,86204.0,0.13432]
[1742438918687,0.197204,86205.0,86204.0,0.13632]
[1742438920955,0.01135482,86220.0,86215.0,0.19718]
[1742438922121,0.011598,86219.0,86213.0,0.011599]
[1742438922252,0.197173,86219.0,86214.0,0.185584]
[1742438922453,0.011598,86218.0,86213.0,0.011599]
[1742438923060,0.0011696,86216.0,86213.0,0.011599]
[1742438923476,0.0001696,86216.0,86211.0,0.0784]
[1742438923726,0.1857516,86216.0,86211.0,0.263989]
[1742438923871,0.1983496,86216.0,86211.0,0.275588]
[1742438925334,0.1973496,86216.0,86211.0,0.275588]
[1742438925683,0.1983496,86216.0,86211.0,0.275588]
[1742438926179,0.011599,86209.0,86205.0,0.3471]
[1742438926382,0.197198,86208.0,86206.0,0.13204]
[1742438926561,0.21886663,86208.0,86206.0,0.13204]
[1742438926757,0.21886663,86208.0,86205.0,0.3471]
[1742438926914,0.21886663,86208.0,86207.0,0.132]
[1742438927260,0.197198,86208.0,86207.0,0.132]
[1742438928202,0.21888088,86208.0,86207.0,0.132]
[1742438928878,0.21888088,86208.0,86207.0,0.134]
[1742438929384,0.02168288,86208.0,86207.0,0.134]
[1742438929997,0.02168288,86208.0,86207.0,0.135]
[1742438930421,0.0001696,86216.0,86214.0,0.197182]
[1742438930860,0.0001696,86216.0,86213.0,0.197185]
[1742438931988,0.02172086,86215.0,86213.0,0.197185]
[1742438932794,0.02172086,86214.0,86213.0,0.197185]
[1742438933122,0.02172086,86214.0,86210.0,0.185593]
[1742438933357,0.02172086,86214.0,86209.0,0.197192]
[1742438933850,0.02172086,86213.0,86209.0,0.197192]
[1742438935433,0.02172086,86212.0,86209.0,0.197192]
[1742438935837,0.02172086,86212.0,86207.0,0.3295352]
[1742438936040,0.197196,86208.0,86207.0,0.0003392]
[1742438936336,0.197196,86208.0,86207.0,0.1319792]
[1742438937751,0.21891686,86208.0,86207.0,0.1319792]
[1742438938095,0.21891686,86208.0,86207.0,0.1329792]
[1742438938308,0.21891686,86208.0,86207.0,0.1349792]
[1742438939983,0.33020473,86208.0,86207.0,0.0033392]
[1742438943663,0.30848387,86208.0,86207.0,0.0023392]
[1742438943902,0.31048387,86208.0,86207.0,0.0023392]
[1742438944433,0.31048387,86208.0,86207.0,0.0003392]
[1742438956357,0.013599,86208.0,86207.0,0.0003392]
[1742438956978,0.011599,86208.0,86207.0,0.0003392]
[1742438957392,0.012599,86208.0,86207.0,0.0003392]
[1742438958422,0.011599,86208.0,86207.0,0.0003392]
[1742438958662,0.012599,86208.0,86207.0,0.0003392]
[1742438959021,0.001,86208.0,86207.0,0.0003392]
[1742438959483,0.012599,86208.0,86207.0,0.0003392]
[1742438959821,0.011599,86208.0,86207.0,0.0003392]
[1742438960238,0.011599,86208.0,86207.0,0.0023392]
[1742438960799,0.12288687,86208.0,86207.0,0.0023392]
[1742438961585,0.12288687,86208.0,86207.0,0.0003392]
[1742438961765,0.12288687,86208.0,86207.0,0.0013392]
[1742438962110,0.12288687,86208.0,86207.0,0.0033392]
[1742438963028,0.12288687,86208.0,86207.0,0.0013392]
[1742438963221,0.12288687,86208.0,86207.0,0.0003392]
[1742438963481,0.12288687,86208.0,86207.0,0.0013392]
[1742438964062,0.12288687,86208.0,86207.0,0.0023392]
[1742438967678,0.12288687,86208.0,86207.0,0.0013392]
[1742438967880,0.12488687,86208.0,86207.0,0.0013392]
[1742438968660,0.12488687,86208.0,86207.0,0.0003392]
[1742438983716,0.25578687,86208.0,86207.0,2e-07]
[1742438983961,0.67892772,86208.0,86207.0,2e-07]
[1742438984635,0.70219008,86208.0,86207.0,2e-07]
[1742438984861,0.70219008,86208.0,86204.0,4e-07]
[1742438984862,0.59304485,86205.0,86204.0,4e-07]
[1742438985099,0.83535365,86205.0,86204.0,4e-07]
[1742438986448,0.83635365,86205.0,86204.0,4e-07]
[1742438986880,0.8168528,86205.0,86204.0,4e-07]
[1742438987085,0.6908928,86205.0,86204.0,0.0010004]
[1742438987293,0.4455528,86205.0,86204.0,0.0010004]
[1742438987785,0.4405528,86205.0,86204.0,4e-07]
[1742438988005,0.4455528,86205.0,86204.0,0.0010004]
[1742438988702,0.4445528,86205.0,86204.0,0.0010004]
[1742438988910,0.4455528,86205.0,86204.0,0.0010004]
[1742438989170,0.197229,86194.0,86187.0,0.000339]
[1742438989408,0.197242,86188.0,86187.0,0.00046408]
[1742438989616,0.30987577,86188.0,86187.0,0.00046408]
[1742438992239,0.31087577,86188.0,86187.0,0.00046408]
[1742438993204,0.31287577,86188.0,86187.0,0.00046408]
[1742438995000,0.72147577,86188.0,86187.0,0.00046408]
[1742438999349,0.197277,86173.0,86172.0,0.0003392]
[1742438999564,0.3109206,86173.0,86172.0,0.0003392]
[1742439000890,0.3109206,86173.0,86172.0,0.0013392]
[1742439001348,0.3109206,86173.0,86172.0,0.0023392]
[1742439001759,0.3159206,86173.0,86172.0,0.0013392]
[1742439002195,0.3159206,86173.0,86172.0,0.0003392]
[1742439002639,0.03114485,86172.0,86171.0,8e-07]
[1742439002868,0.27578212,86172.0,86171.0,8e-07]
[1742439003079,0.28754335,86172.0,86171.0,8e-07]
[1742439004137,0.29254335,86172.0,86171.0,8e-07]
[1742439004338,0.29654335,86172.0,86171.0,8e-07]
[1742439006296,0.29671295,86172.0,86171.0,8e-07]
[1742439006751,0.70531295,86172.0,86171.0,8e-07]
[1742439009102,0.197325,86152.0,86151.0,0.0003388]
[1742439009278,0.31238296,86152.0,86151.0,0.0003388]
[1742439010490,0.31242457,86152.0,86151.0,0.0023388]
[1742439040491,4.161e-05,86152.0,86151.0,0.0778388]
[1742439040972,0.18575961,86152.0,86151.0,0.0778388]
[1742439041219,4.161e-05,86152.0,86151.0,0.0778388]
[1742439041652,0.01164861,86152.0,86151.0,0.0778388]
[1742439042116,0.01164861,86152.0,86151.0,0.0768388]
[1742439042581,0.01164861,86152.0,86151.0,0.0788388]
[1742439042798,0.01164861,86152.0,86151.0,0.0778388]
[1742439042942,0.01164861,86152.0,86151.0,0.0808388]
[1742439044610,4.161e-05,86152.0,86151.0,0.0808388]
[1742439047496,0.18575961,86152.0,86151.0,0.0808388]
[1742439047725,0.31242457,86152.0,86151.0,0.0808388]
[1742439047940,0.31242457,86152.0,86151.0,0.0053388]
[1742439048815,0.31242457,86152.0,86151.0,0.0023388]
[1742439049520,0.31242457,86152.0,86151.0,0.0003388]
[1742439049713,0.31242457,86152.0,86151.0,0.0013388]
[1742439049847,0.31242457,86152.0,86151.0,0.0023388]
[1742439050048,0.31242457,86152.0,86151.0,0.0013388]
[1742439050247,0.31242457,86152.0,86151.0,0.0003388]
[1742439050467,0.31242457,86152.0,86151.0,0.0013388]
[1742439051631,0.31242457,86152.0,86151.0,0.0023388]
[1742439065206,0.72102457,86152.0,86151.0,0.0013388]
[1742439065609,0.72202457,86152.0,86151.0,0.0003388]
[1742439065910,0.72302457,86152.0,86151.0,0.0003388]
[1742439067543,0.77292457,86152.0,86151.0,0.0003388]
[1742439067857,0.90388457,86152.0,86151.0,0.0003388]